{"text_format":"1","workbook":"xlsx","n_sheets":8,"sheets":["NAVODILA","SPLOŠNO","UPORABNIKI","PODPROGRAMI","KADRI","FINANCE","OPOMBE","matrika"],"not_rendered":{"charts":0,"images":0,"macros":1,"external_links":0,"defined_names":11,"comments":0,"pivot_tables":0},"unopened":[],"bounds":{"document_bytes":16777216,"sheet_cells":100000,"rows_first":2000,"rows_last":500,"rows_between":2000,"halvings":0,"cell_chars":16384,"cell_head_chars":4096},"cells_cut":0,"cells_raw":0,"read":"whole","date_system":"1900"}

{"sheet":"NAVODILA","index":0,"n_rows":121,"n_cols":11,"rows_kept":121,"cut":false,"hidden":false,"merged":[[0,0,0,8],[2,1,2,7],[4,1,4,7],[20,1,20,7]]}
["NAVODILA ZA IZPOLNJEVANJE"]
[]
[null,"Spoštovani, \npred vami je obrazec za poročanje - Polletno poročilo o izvajanju socialnovarstvenega programa v obdobju od 1. 1. 2021 do 30. 6. 2021.\n\nObrazec vsebuje več listov, in sicer:\n- splošno, uporabniki, podprogrami, kadri, finance, opombe.\n\nPOMEMBNO: Pri izpolnjevanju vas prosimo, da odgovarjate v za to namenjene celice (sive barve). Celice, označene z zeleno barvo so avtomatski seštevki oz. preverjanje, teh celic ne spreminjajte; celice, označene z rumeno barvo pa določajo izpolnitev kot izbirni seznam (kliknite na puščico v celici).\n\nV primeru tehničnih težav se lahko obrnete na IRSSV, in sicer na e-pošto: svp.irssv@siol.net ali na telefon: 01 2000 262 (Maruša Petrič) oz. 01 2000 259 (Vid Žiberna). Pri pošiljanju NUJNO naredite stisnjeno datoteko zbirnika (npr.  .zip, .rar ipd)."]
[]
[null,"ZAČETEK: Prosimo, izberite skupino in podskupino vašega programa. \nKo boste označili vse korake, se vam bodo odprli zavihki za izpolnjevanje."]
[null,"Opomba: \nV kolikor niste prepričani, v katero podskupino spada program, pustite prazno oz. preverite v končnem poročilu na",null,null,null,null,"POVEZAVI"]
[]
[]
[]
[null,null,"KORAK 1",null,"KORAK 2"]
[null,null,"Prosimo, najprej izberite vašo skupino programov:",null,"Prosimo, izberite vašo podskupino programov:"]
[]
[]
[]
[]
[]
[]
[]
[]
[]
[null,"KONEC: Ko boste z izpolnjevanjem končali, kliknite na spodnji gumb \"NATISNI\" in se bo obrazec avtomatsko shranil v PDF datoteko."]
[]
[]
[]
[]
[]
[]
[]
[]
[]
[]
[]
[]
[]
[]
[]
[]
[]
[]
[]
[]
[]
[]
[]
[]
[]
[]
[]
[]
[]
[]
[]
[]
[]
[]
[]
[]
[]
[]
[]
[]
[]
[]
[]
[]
[]
[]
[]
[]
[]
[]
[]
[]
[]
[]
[]
[]
[]
[]
[]
[]
[]
[]
[]
[]
[]
[]
[]
[]
[]
[]
[]
[]
[]
[]
[]
[]
[]
[]
[]
[]
[]
[]
[]
[]
[]
[]
[]
[]
[]
[]
[]
[]
[]
[null,"NASILJE","ZASVOJENI","DUŠEVNO_ZDRAVJE","BREZDOMCI","OTROCI_MLADOSTNIKI","STAREJŠI","INVALIDI","PSIHOSOCIALNA_POMOČ","ROMI","DRUGI_PROGRAMI"]
[null,"MATERINSKI DOMOVI","PREPOVEDANE DROGE – VISOKI PRAG","STANOVANJSKE SKUPINE","NAMESTITVENI PROGRAMI","DNEVNI CENTRI ZA OTROKE IN MLADOSTNIKE S PREVENTIVNIM DELOM IN SVETOVANJEM","MEDGENERACIJSKA SREDIŠČA","PROGRAMI OSEBNE ASISTENCE IN MREŽE SPREMLJEVALCEV","SPECIALIZIRANI PROGRAMI PSIHOSOCIALNE POMOČI OTROKOM, ODRASLIM ALI DRUŽINAM","PROGRAMI ZA ROME","DRUGI PROGRAMI"]
[null,"VARNE HIŠE, ZATOČIŠČA IN KRIZNI CENTRI","PREPOVEDANE DROGE - NIZKI PRAG","DNEVNI CENTRI","DNEVNI PROGRAMI","PREVENTIVNI PROGRAMI","PROGRAMI ZA STAREJŠE","PROGRAMI ZA SPODBUJANJE SOCIALNE VKLJUČENOSTI IN NEODVISNEGA ŽIVLJENJA INVALIDOV"]
[null,"SVETOVALNICE","PREPOVEDANE DROGE – PREVENTIVNI PROGRAMI","INFORMACIJSKE PISARNE IN SVETOVALNICE","DELOŽACIJE","PROGRAMI TELEFONSKEGA SVETOVANJA","PROGRAMI ZA OSEBE Z DEMENCO IN NJIHOVE SVOJCE"]
[null,"PROGRAMI PREVENTIVE","ALKOHOLIZEM","PROGRAMI TELEFONSKEGA SVETOVANJA"]
[null,"PROGRAMI TELEFONSKEGA SVETOVANJA","MOTNJE HRANJENJA","ZAGOVORNIŠTVO"]
[null,null,"PREPREČEVANJE PREKOMERNE RABE IKT"]

{"sheet":"SPLOŠNO","index":1,"n_rows":25,"n_cols":3,"rows_kept":25,"cut":false,"hidden":true,"merged":[[1,1,3,2],[0,1,0,3],[24,1,24,2]]}
[null,"Polletno poročilo o izvajanju javnega socialnovarstvenega programa \nv obdobju od 1. 1. 2021 do 30. 6. 2021"]
[null,"PROSIMO, DA POROČILO IZPOLNJUJETE KRATKO IN JEDRNATO, DRŽITE SE NAVODIL IN NE SPREMINJAJTE STRUKTURE OBRAZCA.\nIzpolnjen obrazec v Excelu pošljite po elektronski pošti na: gp.mddsz@gov.si"]
[]
[]
[]
[null,"Skupina, podskupina, evalvacija:",{"$f":"Skupina&\"; \"&NAVODILA!E16&\"; \"&NAVODILA!G16","v":"; ; "}]
[null,"Vrsta programa (izberite iz seznama):"]
[null,"Obdobje financiranja (izberite iz seznama):"]
[null,"Izvajalec programa:"]
[null,"Naslov programa: "]
[null,"Številka sklenjene pogodbe: "]
[null,"Naslov izvajalca:"]
[null,"Telefon izvajalca:                                                 "]
[null,"Elektronski naslov:"]
[null,"Spletna stran (opcijsko):"]
[null,"Tip organizacije, v kateri se izvaja program (izberite iz seznama):"]
[null,"Navedite kraje oz. enote, kjer se program izvaja: \nČe se program v enem kraju izvaja na več lokacijah, navedite tudi število lokacij (npr. Ljubljana (3), Maribor (2), Koper, Celje"]
[null,"Skupno število lokacij, kjer se izvaja program:"]
[null,"Navedite skrbnika pogodbe na MDDSZ (naveden v pogodbi):"]
[]
[null,"Kraj in datum:"]
[]
[null,"Strokovni vodja programa + odgovorna oseba\n(navedite osebo in podpišite ter ožigosajte):"]
[]
[null,"Rok za predložitev polletnega poročila: najkasneje do 30. 7. 2021."]

{"sheet":"UPORABNIKI","index":2,"n_rows":58,"n_cols":5,"rows_kept":58,"cut":false,"hidden":true,"merged":[[40,1,40,8],[53,1,53,8],[37,1,37,2],[43,1,43,3],[44,1,44,3],[45,1,45,3],[46,1,46,3],[50,1,50,2],[57,1,57,3],[47,1,47,3],[48,1,48,3],[49,1,49,3],[50,3,50,4],[54,1,54,3],[55,1,55,3],[56,1,56,3],[0,0,0,9],[2,0,2,9],[5,1,5,2],[6,1,6,2],[42,1,42,3],[8,1,8,2],[9,1,9,2],[10,1,10,2],[11,1,11,2],[13,1,13,8],[22,1,22,8],[41,1,41,3],[4,1,4,8],[10,3,10,8],[32,1,32,8],[7,1,7,2]]}
["VSEBINSKO POROČILO - UPORABNIKI - za obdobje od 1. 1. 2021 do 30. 6. 2021"]
[]
["Pri izpolnjevanju bodite pozorni, da se vsi podatki, ki jih vpisujete, nanašajo na obdobje od 1. 1. 2021 do 30. 6. 2021."]
[]
[1,"Prosimo, navedite skupno število vseh (različnih) uporabnikov glavnega programa in v podprogramih, en uporabnik se šteje samo enkrat na leto. Navedite tudi predvideno število uporabnikov, kot ste jih navedli v prijavi na javni razpis. Opredelite navedbo števila uporabnikov ter primerjavo s številom uporabnikov, navedenih v prijavi."]
[null,"Skupaj število različnih uporabnikov"]
[null,"Število uporabnikov v t. i. GLAVNEM programu"]
[null,"...od tega uporabnikov ŽENSKEGA SPOLA"]
[null,"Število uporabnikov v PODPROGRAMIH"]
[null,"Predvideno število uporabnikov v prijavi na razpis"]
[null,"Opredelite oz. pojasnite predvideno število v primerjavi z dejanskim številom uporabnikov:"]
[]
[]
[2,"Prosimo, navedite število vključenih uporabnikov po mesecih ter povprečno število ur aktivne* vključenosti uporabnikov v posamezne dejavnosti programa na mesec, ki so vključeni v t. i. glavni del programa. "]
[null,"2021 - Mesec","2021 - Število vseh vključenih uporabnikov","2021 - Povprečno število ur aktivne* vključenosti enega uporabnika na mesec"]
[null,"januar "]
[null,"februar "]
[null,"marec "]
[null,"april "]
[null,"maj "]
[null,"junij "]
[null,"Povprečno število na mesec",{"$f":"(SUM(C16:C21)/6)","v":0},{"$f":"(SUM(D16:D21)/6)","v":0}]
[null,"Opomba:\n*Aktivna vključenost pomeni, da je uporabnik aktivno vključen v dejavnosti programa. Torej pri programih, ki uporabnikom nudijo bivanje, ne vpisujete 720 ur na mesec, ampak število ur aktivne vključenosti uporabnika v program na mesec."]
[]
[]
[]
[]
[]
[]
[]
[]
[]
[3,"Prosimo, navedite število vseh (različnih) mladoletnih uporabnikov."]
[null,"Starostna skupina","Število moških","Število žensk"]
[null,"do vključno 15 let"]
[null,"nad 15 let do 18 let"]
[null,"Skupaj",{"$f":"SUM(C35:C36)","v":0},{"$f":"SUM(D35:D36)","v":0}]
[null,"Skupaj mladoletnih uporabnikov: ",null,{"$f":"SUM(C37:D37)","v":0}]
[]
[]
[4,"Prosimo, navedite število uporabnikov glede na čas/obdobje njihove vključitve v program. Upoštevajte vse uporabnike. Seštevek uporabnikov mora tako biti enak podatku iz prve preglednice. Prosimo zapišite oceno, če nimate točnih podatkov."]
[null,"Število uporabnikov, ki so program obiskovali/bili vključeni…",null,null,"Število uporabnikov"]
[null,"vsak dan ali petkrat na teden"]
[null,"enkrat ali večkrat na teden, vendar ne vsak (delovni) dan"]
[null,"večkrat/nekajkrat na mesec"]
[null,"enkrat na mesec"]
[null,"nekajkrat na leto"]
[null,"enkrat na leto"]
[null,"uporabniki, za katere ni znano, kako pogosto so obiskovali/bili vključeni v program"]
[null,"Skupaj ",null,null,{"$f":"SUM(E43:E49)","v":0}]
[null,"Ujemanje s prvo preglednico: ","Ujemanje: ",{"$f":"IF((D6=(E50)),\"SEŠTEVEK SE UJEMA\",\"SEŠTEVEK SE NE UJEMA - PREVERITE\")","v":"SEŠTEVEK SE UJEMA"}]
[]
[]
[5,"Prosimo, navedite število nočitev in prenočitvenih kapacitet na dan 30. 6., če jih nudite oz. zagotavljate uporabnikom: "]
[null,"Povprečno število nočitev na mesec"]
[null,"Število prenočitvenih kapacitet na dan 30. 6. - število sob"]
[null,"Število formalno priznanih prenočitvenih kapacitet na dan 30. 6. - število postelj"]
[null,"Število dodatnih, rezervnih prenočitvenih kapacitet na dan 30. 6. - število postelj"]

{"sheet":"PODPROGRAMI","index":3,"n_rows":19,"n_cols":5,"rows_kept":19,"cut":false,"hidden":true,"merged":[[4,1,4,8],[17,1,17,4],[0,0,0,9],[2,0,2,9]]}
["VSEBINSKO POROČILO - PODPROGRAMI - za obdobje od 1. 1. 2021 do 30. 6. 2021"]
[]
["Pri izpolnjevanju bodite pozorni, da se vsi podatki, ki jih vpisujete, nanašajo na obdobje od 1. 1. 2021 do 30. 6. 2021."]
[]
[1,"V kolikor v okviru programa izvajate podprograme (npr. predavanja, e-svetovanje, skupina za starše ipd.), ki niso del glavnega programa, prosimo navedite število uporabnikov za vsak podprogram posebej. V podprogramih, kjer beležite število uporabnikov, izpolnite 2. in 4. stolpec. V podprogramih, kjer beležite le število izvajanj, izpolnite le stolpec 3. Če beležite opravljene storitve in NE števila uporabnikov (npr. telefonski klici), posebej poudarite ali gre za storitev ali uporabnika."]
[null,"Podprogram","Število različnih uporabnikov","Število storitev","Povprečno število ur vključenosti enega uporabnika na mesec/pri telefonskih klicih navedite povprečni čas pogovora"]
[]
[]
[]
[]
[]
[]
[]
[]
[]
[]
[]
[null,"po potrebi vstavite vrstice"]
[null,"Skupaj",{"$f":"SUM(C7:C18)","v":0},{"$f":"SUM(D7:D18)","v":0},{"$f":"SUM(E7:E18)","v":0}]

{"sheet":"KADRI","index":4,"n_rows":79,"n_cols":10,"rows_kept":79,"cut":false,"hidden":true,"merged":[[23,7,23,8],[24,7,24,8],[30,7,30,8],[31,7,31,8],[5,7,5,8],[6,7,6,8],[39,3,39,5],[40,3,40,5],[41,3,41,5],[42,3,42,5],[43,3,43,5],[73,1,73,8],[76,1,76,8],[44,3,44,5],[45,3,45,5],[46,3,46,5],[47,3,47,5],[48,1,48,5],[51,1,51,8],[53,1,53,2],[55,1,55,8],[15,7,15,8],[16,7,16,8],[7,7,7,8],[8,7,8,8],[9,7,9,8],[10,7,10,8],[11,7,11,8],[4,1,4,9],[0,0,0,9],[2,0,2,9],[38,3,38,5],[19,7,19,8],[20,7,20,8],[21,7,21,8],[22,7,22,8],[17,7,17,8],[18,7,18,8],[35,1,35,8],[36,3,36,5],[37,3,37,5],[12,7,12,8],[13,7,13,8],[14,7,14,8]]}
["VSEBINSKO POROČILO - KADRI - za obdobje od 1. 1. 2021 do 30. 6. 2021"]
[]
["Pri izpolnjevanju bodite pozorni, da se vsi podatki, ki jih vpisujete, nanašajo na obdobje od 1. 1. 2021 do 30. 6. 2021."]
[]
[1,"Prosimo, navedite zaposlene v programu, njihovo smer in stopnjo izobrazbe, delovno mesto, vrsto zaposlitve, število opravljenih ur v programu in vire financiranja zaposlitve. Če je zaposleni v programu sofinanciran iz drugih virov, npr. občine, navedite število ur sofinanciranja za vsak vir posebej. "]
[null,"Ime in priimek","Izobrazba\n(smer/ stopnja)","Delovno mesto\n(izberite ustrezen odgovor)","Vrsta zaposlitve\n(izberite ustrezen odgovor)","Skupaj število opravljenih ur, \nne glede na financerja","Število opravljenih ur, financiranih iz MDDSZ","Število opravljenih ur \npo drugih financerjih\n(npr. OBČINA: 1044; FIHO: 500; ZRSZ: 544)",null,"OPOMBA"]
[]
[]
[]
[]
[]
[]
[]
[]
[]
[]
[]
[]
[]
[]
[]
[]
[]
[]
[]
[]
[]
[]
[]
[]
[]
[]
[null,"po potrebi vstavite vrstice"]
[]
[]
[2,"Prosimo, navedite še ostale plačane izvajalce programa (študente, zunanje sodelavce ipd.) ter navedite njihovo vrsto pogodbo in vrsto dela."]
[null,"Ime in priimek","Vrsta pogodbe","Vrsta dela"]
[]
[]
[]
[]
[]
[]
[]
[]
[]
[]
[]
[null,"po potrebi vstavite vrstice"]
[]
[]
[3,"Prosimo, navedite število vseh ur, ki so jih opravili prostovoljci v programu. Navedite prostovoljce glede na spol in število opravljenih ur ter opredelite vrsto prostovoljnega dela. V zadnji preglednici prosimo ovrednotite prostovoljce."]
[]
[null,"Skupaj opravljeno število ur prostovoljnega dela"]
[]
[null,"Prosimo, navedite število prostovoljcev po spolu:"]
[null,"Število žensk"]
[null,"Število moških"]
[null,"Skupaj število prostovoljcev",{"$f":"C57+C58","v":0}]
[]
[null,"Število opravljenih ur","Število prostovoljcev"]
[null,"0 do 24 ur"]
[null,"25 do 100 ur"]
[null,"101 do 500 ur"]
[null,"501 ur in več"]
[null,"Skupaj število prostovoljcev",{"$f":"SUM(C62:C65)","v":0}]
[]
[null,"Vrsta dela glede na določila Zakona o prostovoljstvu*","Število prostovoljcev"]
[null,"organizacijsko delo"]
[null,"strokovno delo - na področju socialnega varstva"]
[null,"strokovno delo - drugo"]
[null,"drugo delo"]
[null,"Skupaj število prostovoljcev",{"$f":"SUM(C69:C72)","v":0}]
[null,"Opomba:\n* Zakon o prostovoljstvu (Uradni list RS, število 10/11, 16/11 – popr. in 82/15), 23.a člen, vrste prostovoljskega dela:\n(1) Vrste prostovoljskega dela iz druge alineje drugega odstavka 23. člena so: organizacijsko delo, ki je opravljanje prostovoljskega dela vodenja projektov in programov, njihova organizacija ali organizacija dela projekta ali programa in opravljanje mentorstva prostovoljcem; vsebinsko delo, ki je opravljanje prostovoljskega dela, za izvajanje katerega so potrebna posebna znanja in veščine ali pa gre za osnovno prostovoljsko delo posameznega programa ali projekta. Posebna znanja in veščine so znanja in veščine, ki jih prostovoljec pridobi v vzgojno izobraževalnem sistemu ali na usposabljanju prostovoljske organizacije; drugo delo, ki je opravljanje prostovoljskega dela kot pomožnega dela ali dela za podporo prostovoljskemu programu ali projektu ali dela za opravljanje katerega ni potrebno posebno usposabljanje."]
[]
[]
[4,"Če prostovoljci prejemajo denarno nagrado, prosimo navedite višino nagrade (plačilo na uro) in skupni znesek, ki je bil porabljen v ta namen:"]
[null,"Višina nagrade na uro"]
[null,"Skupni znesek"]

{"sheet":"FINANCE","index":5,"n_rows":90,"n_cols":9,"rows_kept":90,"cut":false,"hidden":true,"merged":[[8,7,8,8],[22,1,22,8],[87,1,87,5],[88,1,88,2],[89,1,89,2],[65,1,65,2],[68,1,68,5],[69,1,69,2],[72,1,72,5],[75,1,75,2],[77,1,77,2],[86,1,86,2],[85,1,85,2],[79,1,79,2],[80,1,80,2],[81,1,81,2],[54,1,54,5],[55,1,55,2],[56,1,56,2],[59,1,59,8],[60,4,60,5],[23,1,23,2],[26,1,26,8],[27,4,27,5],[32,1,32,2],[35,1,35,5],[30,1,30,2],[31,1,31,2],[27,1,27,2],[28,1,28,2],[29,1,29,2],[43,1,43,2],[44,1,44,2],[37,1,37,2],[38,1,38,2],[40,1,40,2],[41,1,41,2],[39,1,39,5],[42,1,42,2],[10,1,10,2],[11,1,11,2],[9,1,9,2],[12,1,12,2],[53,1,53,2],[50,1,50,2],[52,1,52,2],[51,1,51,2],[33,1,33,2],[34,1,34,2],[36,1,36,2],[45,1,45,5],[46,1,46,2],[47,1,47,2],[48,1,48,2],[49,1,49,2],[8,3,8,4],[19,1,19,2],[21,1,21,2],[0,0,0,9],[2,0,2,9],[4,1,4,8],[7,1,7,8],[8,5,8,6],[18,1,18,2],[20,1,20,2],[13,1,13,2],[14,1,14,2],[15,1,15,2],[16,1,16,2],[17,1,17,2],[8,1,8,2],[84,1,84,2],[61,1,61,2],[60,1,60,2],[76,1,76,2],[63,1,63,2],[62,1,62,2],[64,1,64,2],[71,1,71,2],[70,1,70,2],[73,1,73,2],[74,1,74,2],[66,1,66,2],[67,1,67,2],[82,1,82,2],[83,1,83,2],[78,1,78,5]]}
["FINANČNO POROČILO - za obdobje od 1. 1. 2021 do 30. 6. 2021"]
[]
["OPOZORILO! Listine (račune, izplačilni liste, itd.), iz katerih je razvidno, da so bila sredstva porabljena namensko za izvajanje programa, hranite za morebitni nadzor programa.\nPri izpolnjevanju bodite pozorni, da se vsi podatki, ki jih vpisujete, nanašajo na obdobje od 1. 1. 2021 do 30. 6. 2021."]
[]
[1,"Prosimo, navedite skupni odstotek prihodkov, pridobljenih od drugih sofinancerjev programa (% od celotne vrednosti programa)."]
[]
[]
[null,"Prosimo, navedite vire financiranja oz. vse sofinancerje programa, odobrena sredstva za izvajanje programa ter višino sredstev."]
[null,"PRIHODKI PROGRAMA",null,"Vsa zaprošena sredstva",null,"Vsa prejeta sredstva",null,"Priložena dokazila"]
[null,"Sofinancer programa",null,"Znesek v EUR","V odstotkih","Znesek v EUR","V odstotkih","Znesek v EUR","V odstotkih"]
[null,"MDDSZ",null,null,{"$f":"D11/$D$24","v":{"$error":"#DIV/0!"}},null,{"$f":"F11/$F$24","v":{"$error":"#DIV/0!"}}]
[null,"Občine (seštejte znesek vseh občin skupaj)",null,null,{"$error":"#DIV/0!"},null,{"$error":"#DIV/0!"},null,{"$f":"H12/$F$24","v":{"$error":"#DIV/0!"}}]
[null,"Donacije",null,null,{"$error":"#DIV/0!"},null,{"$error":"#DIV/0!"},null,{"$f":"H13/$F$24","v":{"$error":"#DIV/0!"}}]
[null,"FIHO",null,null,{"$error":"#DIV/0!"},null,{"$error":"#DIV/0!"},null,{"$error":"#DIV/0!"}]
[null,"ZRSZ",null,null,{"$error":"#DIV/0!"},null,{"$error":"#DIV/0!"},null,{"$error":"#DIV/0!"}]
[null,"Drugi proračunski viri (navedite: _____)",null,null,{"$error":"#DIV/0!"},null,{"$error":"#DIV/0!"},null,{"$error":"#DIV/0!"}]
[null,"Uporabniki",null,null,{"$error":"#DIV/0!"},null,{"$error":"#DIV/0!"},null,{"$error":"#DIV/0!"}]
[null,"Članarine",null,null,{"$error":"#DIV/0!"},null,{"$error":"#DIV/0!"},null,{"$error":"#DIV/0!"}]
[null,"Lastna sredstva",null,null,{"$error":"#DIV/0!"},null,{"$error":"#DIV/0!"},null,{"$error":"#DIV/0!"}]
[null,"Ovrednoteno prostovoljsko delo",null,null,{"$error":"#DIV/0!"},null,{"$error":"#DIV/0!"},null,{"$error":"#DIV/0!"}]
[null,"Brezplačen najem prostorov",null,null,{"$error":"#DIV/0!"},null,{"$error":"#DIV/0!"},null,{"$error":"#DIV/0!"}]
[null,"Drugo (navedite: _____)",null,null,{"$error":"#DIV/0!"},null,{"$error":"#DIV/0!"},null,{"$error":"#DIV/0!"}]
[null,"po potrebi vstavite vrstice in prekopirajte formule za preračun"]
[null,"SKUPAJ",null,{"$f":"SUM(D11:D23)","v":0},{"$error":"#DIV/0!"},0,{"$error":"#DIV/0!"},0,{"$error":"#DIV/0!"}]
[]
[]
[2,"Prosimo, navedite vse odhodke programa. Po potrebi dodajte vrstice, še posebej, če imate več različnih stroškov pri odhodkih. "]
[null,"ODHODKI PROGRAMA",null,"Znesek v EUR","V odstotkih"]
[null,"1. Stroški dela redno zaposlenih ",null,{"$f":"SUM(D30:D35)","v":0},null,{"$f":"D29/$D$57","v":{"$error":"#DIV/0!"}}]
[null," - plače zaposlenih ",null,null,{"$f":"D30/$D$57","v":{"$error":"#DIV/0!"}}]
[null,"- delodajalčeve dajatve za socialno varnost",null,null,{"$error":"#DIV/0!"}]
[null,"- regres za letni dopust",null,null,{"$error":"#DIV/0!"}]
[null,"- prevoz na delo",null,null,{"$error":"#DIV/0!"}]
[null,"- stroški prehrane",null,null,{"$error":"#DIV/0!"}]
[null,"- jubilejne nagrade",null,null,{"$error":"#DIV/0!"}]
[null,"po potrebi vstavite vrstice in prekopirajte formule za preračun"]
[null,"2. Stroški zunanjih izvajalcev, vezanih neposredno na program ",null,{"$f":"SUM(D38:D39)","v":0},null,{"$f":"D37/$D$57","v":{"$error":"#DIV/0!"}}]
[null,"- delo na podlagi pogodb",null,null,{"$f":"D38/$D$57","v":{"$error":"#DIV/0!"}}]
[null,"- strošek študentskega dela",null,null,{"$f":"D39/$D$57","v":{"$error":"#DIV/0!"}}]
[null,"po potrebi vstavite vrstice in prekopirajte formule za preračun"]
[null,"3. Povračilo stroškov v zvezi z delom na programu za prostovoljce na osnovi sklenjenih dogovorov",null,{"$f":"SUM(D42:D45)","v":0},null,{"$f":"D41/$D$57","v":{"$error":"#DIV/0!"}}]
[null,"- nagrade prostovoljcem",null,null,{"$f":"D42/$D$57","v":{"$error":"#DIV/0!"}}]
[null,"- potni stroški za prostovoljce",null,null,{"$f":"D43/$D$57","v":{"$error":"#DIV/0!"}}]
[null,"- stroški prehrane za prostovoljce",null,null,{"$f":"D44/$D$57","v":{"$error":"#DIV/0!"}}]
[null,"- drugi stroški za prostovoljce (natančno opredelite te stroške)",null,null,{"$f":"D45/$D$57","v":{"$error":"#DIV/0!"}}]
[null,"po potrebi vstavite vrstice in prekopirajte formule za preračun"]
[null,"4. Stroški materiala ter storitev",null,{"$f":"SUM(D48:D54)","v":0},null,{"$f":"D47/$D$57","v":{"$error":"#DIV/0!"}}]
[null," - energija – elektrika",null,null,{"$f":"D48/$D$57","v":{"$error":"#DIV/0!"}}]
[null,"- ogrevanje prostorov",null,null,{"$error":"#DIV/0!"}]
[null,"- najemnina lokacija 1",null,null,{"$error":"#DIV/0!"}]
[null,"- najemnina lokacija 2",null,null,{"$error":"#DIV/0!"}]
[null,"-supervizija",null,null,{"$error":"#DIV/0!"}]
[null,"- telefonski stroški",null,null,{"$error":"#DIV/0!"}]
[null,"- stroški drugega materiala (natančno opredelite in navedite te stroške)",null,null,{"$error":"#DIV/0!"}]
[null,"po potrebi vstavite vrstice in prekopirajte formule za preračun"]
[null,"Preostanek sredstev",null,{"$f":"F24-D57","v":0}]
[null,"SKUPAJ VSI ODHODKI",null,{"$f":"D29+D37+D41+D47","v":0},{"$f":"SUM(E29:E54)","v":{"$error":"#DIV/0!"}},{"$f":"SUM(F29:F54)","v":{"$error":"#DIV/0!"}}]
[]
[]
[3,"Prosimo, navedite stroške, krite iz sredstev MDDSZ, ki ste jih pridobili preko javnega razpisa za sofinanciranje programov socialnega varstva. Po potrebi dodajte vrstice, še posebej, če imate več različnih stroškov pri odhodkih iz sredstev MDDSZ."]
[null,"ODHODKI PROGRAMA",null,"Znesek v EUR","V odstotkih"]
[null,"1. Stroški dela redno zaposlenih ",null,{"$f":"SUM(D63:D68)","v":0},null,{"$f":"D62/$D$90","v":{"$error":"#DIV/0!"}}]
[null," - plače zaposlenih ",null,null,{"$f":"D63/$D$90","v":{"$error":"#DIV/0!"}}]
[null,"- delodajalčeve dajatve za socialno varnost",null,null,{"$error":"#DIV/0!"}]
[null,"- regres za letni dopust",null,null,{"$error":"#DIV/0!"}]
[null,"- prevoz na delo",null,null,{"$error":"#DIV/0!"}]
[null,"- stroški prehrane",null,null,{"$error":"#DIV/0!"}]
[null,"- jubilejne nagrade",null,null,{"$error":"#DIV/0!"}]
[null,"po potrebi vstavite vrstice in prekopirajte formule za preračun"]
[null,"2. Stroški zunanjih izvajalcev, vezanih neposredno na program ",null,{"$f":"SUM(D71:D72)","v":0},null,{"$f":"D70/$D$90","v":{"$error":"#DIV/0!"}}]
[null,"- delo na podlagi pogodb",null,null,{"$f":"D71/$D$90","v":{"$error":"#DIV/0!"}}]
[null,"- strošek študentskega dela",null,null,{"$f":"D72/$D$90","v":{"$error":"#DIV/0!"}}]
[null,"po potrebi vstavite vrstice in prekopirajte formule za preračun"]
[null,"3. Povračilo stroškov v zvezi z delom na programu za prostovoljce na osnovi sklenjenih dogovorov",null,{"$f":"SUM(D75:D78)","v":0},null,{"$f":"D74/$D$90","v":{"$error":"#DIV/0!"}}]
[null,"- nagrade prostovoljcem",null,null,{"$f":"D75/$D$90","v":{"$error":"#DIV/0!"}}]
[null,"- potni stroški za prostovoljce",null,null,{"$f":"D76/$D$90","v":{"$error":"#DIV/0!"}}]
[null,"- stroški prehrane za prostovoljce",null,null,{"$error":"#DIV/0!"}]
[null,"- drugi stroški za prostovoljce (natančno opredelite te stroške)",null,null,{"$error":"#DIV/0!"}]
[null,"po potrebi vstavite vrstice in prekopirajte formule za preračun"]
[null,"4. Stroški materiala ter storitev",null,{"$f":"SUM(D81:D87)","v":0},null,{"$f":"D80/$D$90","v":{"$error":"#DIV/0!"}}]
[null," - energija – elektrika",null,null,{"$f":"D81/$D$90","v":{"$error":"#DIV/0!"}}]
[null,"- ogrevanje prostorov",null,null,{"$f":"D82/$D$90","v":{"$error":"#DIV/0!"}}]
[null,"- najemnina lokacija 1",null,null,{"$error":"#DIV/0!"}]
[null,"- najemnina lokacija 2",null,null,{"$error":"#DIV/0!"}]
[null,"-supervizija",null,null,{"$error":"#DIV/0!"}]
[null,"- telefonski stroški",null,null,{"$error":"#DIV/0!"}]
[null,"- stroški drugega materiala (natančno opredelite in navedite te stroške)",null,null,{"$error":"#DIV/0!"}]
[null,"po potrebi vstavite vrstice in prekopirajte formule za preračun"]
[null,"Preostanek sredstev",null,{"$f":"F11-D90","v":0}]
[null,"SKUPAJ VSI ODHODKI",null,{"$f":"D62+D70+D74+D80","v":0},{"$f":"SUM(E62:E87)","v":{"$error":"#DIV/0!"}},{"$f":"SUM(F62:F87)","v":{"$error":"#DIV/0!"}}]

{"sheet":"OPOMBE","index":6,"n_rows":3,"n_cols":1,"rows_kept":3,"cut":false,"hidden":true,"merged":[[0,0,0,7],[3,0,29,6]]}
["OPOMBE"]
[]
["PROSIMO, NAVEDITE MOREBITNE OPOMBE, POJASNILA, KOMENTARJE:"]

{"sheet":"matrika","index":7,"n_rows":21,"n_cols":21,"rows_kept":21,"cut":false,"hidden":true,"merged":[[0,9,0,13],[0,18,0,19]]}
["področje","podpodročje1","podpodročje2","podpodročje3","podpodročje4","podpodročje5","podpodročje6",null,null,"zavihki, ki se morajo prikazati za to podpodročje",null,null,null,null,"IF korak 3","IF korak 3","IF 2 oz. 5 pri koraku 1",null,"IF korak \"3 = DA\" + IF korak \"2\" - ena od spodnjih opcij",null,"prikaži list KAPACITETE"]
["NASILJE","MATERINSKI DOMOVI","VARNE HIŠE, ZATOČIŠČA IN KRIZNI CENTRI","SVETOVALNICE","PROGRAMI PREVENTIVE","PROGRAMI TELEFONSKEGA SVETOVANJA",null,null,null,"navodila","splošno","vsebina","finance","opombe","evalvacija","postopki",null,null,"MATERINSKI DOMOVI","VARNE HIŠE, ZATOČIŠČA IN KRIZNI CENTRI","kapacitete"]
["ZASVOJENI","PREPOVEDANE DROGE – VISOKI PRAG","PREPOVEDANE DROGE - NIZKI PRAG","PREPOVEDANE DROGE – PREVENTIVNI PROGRAMI","ALKOHOLIZEM","MOTNJE HRANJENJA","PREPREČEVANJE PREKOMERNE RABE IKT",null,null,"navodila","splošno","vsebina","finance","opombe","evalvacija","postopki","2-dodatno",null,"PREPOVEDANE DROGE – VISOKI PRAG","ALKOHOLIZEM","kapacitete"]
["DUŠEVNO_ZDRAVJE","STANOVANJSKE SKUPINE","DNEVNI CENTRI","INFORMACIJSKE PISARNE IN SVETOVALNICE","PROGRAMI TELEFONSKEGA SVETOVANJA","ZAGOVORNIŠTVO",null,null,null,"navodila","splošno","vsebina","finance","opombe","evalvacija","postopki",null,null,"STANOVANJSKE SKUPINE",null,"kapacitete"]
["BREZDOMCI","NAMESTITVENI PROGRAMI","DNEVNI PROGRAMI","DELOŽACIJE",null,null,null,null,null,"navodila","splošno","vsebina","finance","opombe","evalvacija","postopki",null,null,"NAMESTITVENI PROGRAMI",null,"kapacitete"]
["OTROCI_MLADOSTNIKI","DNEVNI CENTRI ZA OTROKE IN MLADOSTNIKE S PREVENTIVNIM DELOM IN SVETOVANJEM","PREVENTIVNI PROGRAMI","PROGRAMI TELEFONSKEGA SVETOVANJA",null,null,null,null,null,"navodila","splošno","vsebina","finance","opombe","evalvacija","postopki","5-dodatno"]
["STAREJŠI","MEDGENERACIJSKA SREDIŠČA","PROGRAMI ZA STAREJŠE","PROGRAMI ZA OSEBE Z DEMENCO IN NJIHOVE SVOJCE",null,null,null,null,null,"navodila","splošno","vsebina","finance","opombe","evalvacija","postopki"]
["INVALIDI","PROGRAMI OSEBNE ASISTENCE IN MREŽE SPREMLJEVALCEV","PROGRAMI ZA SPODBUJANJE SOCIALNE VKLJUČENOSTI IN NEODVISNEGA ŽIVLJENJA INVALIDOV",null,null,null,null,null,null,"navodila","splošno","vsebina","finance","opombe","evalvacija","postopki",null,null,"PROGRAMI ZA SPODBUJANJE SOCIALNE VKLJUČENOSTI IN NEODVISNEGA ŽIVLJENJA INVALIDOV",null,"kapacitete"]
["PSIHOSOCIALNA_POMOČ","SPECIALIZIRANI PROGRAMI PSIHOSOCIALNE POMOČI OTROKOM, ODRASLIM ALI DRUŽINAM",null,null,null,null,null,null,null,"navodila","splošno","vsebina","finance","opombe","evalvacija","postopki"]
["ROMI","PROGRAMI ZA ROME",null,null,null,null,null,null,null,"navodila","splošno","vsebina","finance","opombe","evalvacija","postopki"]
["DRUGI_PROGRAMI","DRUGI PROGRAMI",null,null,null,null,null,null,null,"navodila","splošno","vsebina","finance","opombe","evalvacija","postopki"]
[]
[]
[]
["Dokumentacija o programu"]
["Dokumentacija za uporabnike"]
["Vprašalnik za uporabnike ob vstopu"]
["Vprašalnik za uporabnike ob evalvaciji /izstopu iz programa"]
["Vprašalnik za uporabnike po razgovoru oz. Vprašalnik o svetovalnem pogovoru"]
["Vprašalnik za oceno programa oz. Vprašalnik ocena programa za anonimne uporabnike"]
["Vprašalnik o oceni programa za svojce"]